[Event "Early-Titled-Tuesday-Blitz-February-20-2024"]
[Site "Chess.com"]
[Date "2024.02.20"]
[Round "5"]
[White "baki83"]
[Black "bazar-wokzal"]
[Result "1-0"]
[WhiteElo "2899"]
[BlackElo "2684"]
[TimeControl "180+1"]
[EndTime "8:57:46 PST"]
[Termination "baki83 won by resignation"]

1. e4 {[%clk 0:03:00.9]} 1... Nc6 {[%clk 0:02:55.2]} 2. Nf3 {[%clk 0:03:00.7]}
2... d5 {[%clk 0:02:54.4]} 3. exd5 {[%clk 0:03:01.1]} 3... Qxd5 {[%clk
0:02:52.9]} 4. Nc3 {[%clk 0:03:01.6]} 4... Qa5 {[%clk 0:02:49]} 5. Bb5 {[%clk
0:03:01.7]} 5... Bd7 {[%clk 0:02:49.3]} 6. O-O {[%clk 0:02:59.8]} 6... a6 {[%clk
0:02:49.6]} 7. Bxc6 {[%clk 0:02:59.6]} 7... Bxc6 {[%clk 0:02:50.5]} 8. d4 {[%clk
0:02:58.2]} 8... e6 {[%clk 0:02:47.9]} 9. Ne5 {[%clk 0:02:57.7]} 9... Bd6 {[%clk
0:02:47.8]} 10. Nxc6 {[%clk 0:02:56.4]} 10... bxc6 {[%clk 0:02:48.7]} 11. Qf3
{[%clk 0:02:56.3]} 11... Ne7 {[%clk 0:02:47.9]} 12. Ne4 {[%clk 0:02:49.7]} 12...
Qf5 {[%clk 0:02:36.8]} 13. Qxf5 {[%clk 0:02:48.4]} 13... Nxf5 {[%clk 0:02:36.5]}
14. c3 {[%clk 0:02:47]} 14... Kd7 {[%clk 0:02:29.3]} 15. Re1 {[%clk 0:02:45]}
15... a5 {[%clk 0:02:26.2]} 16. a4 {[%clk 0:02:42.7]} 16... Rhb8 {[%clk
0:02:25.4]} 17. Re2 {[%clk 0:02:35.1]} 17... h5 {[%clk 0:02:24.5]} 18. g3 {[%clk
0:02:34.3]} 18... Be7 {[%clk 0:02:17.4]} 19. Kg2 {[%clk 0:02:33.3]} 19... Rb7
{[%clk 0:02:11.2]} 20. h3 {[%clk 0:02:19.5]} 20... Ke8 {[%clk 0:02:10]} 21. Bf4
{[%clk 0:02:15.8]} 21... Rab8 {[%clk 0:02:08]} 22. Ra2 {[%clk 0:02:14.3]} 22...
f6 {[%clk 0:01:51.2]} 23. h4 {[%clk 0:02:05.4]} 23... Kf7 {[%clk 0:01:50.7]} 24.
Kf1 {[%clk 0:02:01.3]} 24... Bd6 {[%clk 0:01:49.6]} 25. Bc1 {[%clk 0:01:57.8]}
25... Rb3 {[%clk 0:01:43.1]} 26. Ke1 {[%clk 0:01:54.3]} 26... Be7 {[%clk
0:01:38.7]} 27. Kd1 {[%clk 0:01:47.7]} 27... R3b7 {[%clk 0:01:36.8]} 28. Kc2
{[%clk 0:01:47.2]} 28... Rb6 {[%clk 0:01:34.5]} 29. Bf4 {[%clk 0:01:45.6]} 29...
Bd6 {[%clk 0:01:33.2]} 30. Bc1 {[%clk 0:01:42.2]} 30... Be7 {[%clk 0:01:33.2]}
31. Re1 {[%clk 0:01:41]} 31... R6b7 {[%clk 0:01:31.1]} 32. Ra1 {[%clk
0:01:39.1]} 32... Rb6 {[%clk 0:01:29.9]} 33. Rb1 {[%clk 0:01:39.1]} 33... R6b7
{[%clk 0:01:27.1]} 34. Bf4 {[%clk 0:01:38.5]} 34... Bd6 {[%clk 0:01:26.6]} 35.
Bc1 {[%clk 0:01:30.1]} 35... Be7 {[%clk 0:01:26.6]} 36. Re2 {[%clk 0:01:25.3]}
36... Rb6 {[%clk 0:01:26.4]} 37. b3 {[%clk 0:01:19.4]} 37... R6b7 {[%clk
0:01:26.5]} 38. Bf4 {[%clk 0:01:17.8]} 38... Bd6 {[%clk 0:01:26.2]} 39. Be3
{[%clk 0:01:17.6]} 39... Be7 {[%clk 0:01:25.4]} 40. Nd2 {[%clk 0:01:16.2]} 40...
Nd6 {[%clk 0:01:21.3]} 41. Bf4 {[%clk 0:01:14.6]} 41... Nf5 {[%clk 0:01:16.4]}
42. Nc4 {[%clk 0:01:08.2]} 42... Ra8 {[%clk 0:01:13.4]} 43. Rbe1 {[%clk
0:01:07.5]} 43... c5 {[%clk 0:01:05]} 44. dxc5 {[%clk 0:00:53.7]} 44... e5
{[%clk 0:01:04.5]} 45. c6 {[%clk 0:00:39.7]} 45... Rba7 {[%clk 0:00:56.9]} 46.
Bd2 {[%clk 0:00:37.2]} 46... Ra6 {[%clk 0:00:55.3]} 47. Re4 {[%clk 0:00:36.9]}
47... Rxc6 {[%clk 0:00:49.9]} 48. Rxe5 {[%clk 0:00:36.8]} 48... Rxc4 {[%clk
0:00:49.4]} 49. Rxf5 {[%clk 0:00:36.2]} 49... Rc6 {[%clk 0:00:43.9]} 50. Rxh5
{[%clk 0:00:35]} 50... Bd6 {[%clk 0:00:39.7]} 51. Rb5 {[%clk 0:00:34.2]} 51...
Rca6 {[%clk 0:00:34.6]} 52. h5 {[%clk 0:00:32.4]} 52... Kg8 {[%clk 0:00:26.6]}
53. Rb7 {[%clk 0:00:30.4]} 53... Kf7 {[%clk 0:00:19.6]} 54. Re4 {[%clk
0:00:29.8]} 54... Rc6 {[%clk 0:00:16.2]} 55. g4 {[%clk 0:00:22.8]} 55... Rca6
{[%clk 0:00:11.6]} 56. f4 {[%clk 0:00:22.6]} 56... Rc6 {[%clk 0:00:11.7]} 57. g5
{[%clk 0:00:23]} 57... fxg5 {[%clk 0:00:10.3]} 58. fxg5 {[%clk 0:00:23]} 58...
Kg8 {[%clk 0:00:09.9]} 59. h6 {[%clk 0:00:21.8]} 59... gxh6 {[%clk 0:00:09.6]}
60. gxh6 {[%clk 0:00:22.1]} 60... Kh7 {[%clk 0:00:10.2]} 61. Re6 {[%clk
0:00:20.6]} 61... Rg8 {[%clk 0:00:08.6]} 62. Re2 {[%clk 0:00:12.2]} 62... Rg3
{[%clk 0:00:08.3]} 63. Rb5 {[%clk 0:00:11.5]} 63... Bb4 {[%clk 0:00:08.1]} 64.
c4 {[%clk 0:00:09.3]} 64... Bxd2 {[%clk 0:00:07.9]} 65. Rxd2 {[%clk 0:00:09.7]}
65... Kxh6 {[%clk 0:00:08.1]} 66. Rxa5 {[%clk 0:00:10]} 66... Re6 {[%clk
0:00:08]} 67. Rb5 {[%clk 0:00:10.3]} 67... c6 {[%clk 0:00:07.5]} 68. Rb6 {[%clk
0:00:10.2]} 68... Kg5 {[%clk 0:00:08]} 69. Kb2 {[%clk 0:00:10.5]} 69... Kf4
{[%clk 0:00:07.6]} 70. a5 {[%clk 0:00:10.7]} 70... Ke3 {[%clk 0:00:08]} 71. Rd7
{[%clk 0:00:08.8]} 71... Rg2+ {[%clk 0:00:06.8]} 72. Ka3 {[%clk 0:00:08.1]}
72... Rg1 {[%clk 0:00:07.2]} 73. Kb4 {[%clk 0:00:08.2]} 73... Ra1 {[%clk
0:00:06.9]} 74. Rc7 {[%clk 0:00:07.9]} 74... Kd4 {[%clk 0:00:06.8]} 75. Rcxc6
{[%clk 0:00:07.7]} 1-0

[Event "Early-Titled-Tuesday-Blitz-February-20-2024"]
[Site "Chess.com"]
[Date "2024.02.20"]
[Round "5"]
[White "Rud_Makarian"]
[Black "alexrustemov"]
[Result "1-0"]
[WhiteElo "3087"]
[BlackElo "2904"]
[TimeControl "180+1"]
[EndTime "8:57:56 PST"]
[Termination "Rud_Makarian won on time"]

1. d4 {[%clk 0:03:00.9]} 1... d5 {[%clk 0:03:00.2]} 2. c4 {[%clk 0:02:39.6]}
2... e6 {[%clk 0:03:00.3]} 3. Nf3 {[%clk 0:02:39.2]} 3... Nf6 {[%clk 0:03:00.1]}
4. g3 {[%clk 0:02:40]} 4... Bb4+ {[%clk 0:02:59.7]} 5. Bd2 {[%clk 0:02:40.6]}
5... Be7 {[%clk 0:02:59.2]} 6. Bg2 {[%clk 0:02:40.3]} 6... O-O {[%clk
0:02:59.4]} 7. Qc2 {[%clk 0:02:41.2]} 7... c6 {[%clk 0:02:59.3]} 8. O-O {[%clk
0:02:41.9]} 8... b6 {[%clk 0:02:59]} 9. Bf4 {[%clk 0:02:41]} 9... Ba6 {[%clk
0:02:54]} 10. Nbd2 {[%clk 0:02:40.5]} 10... Nbd7 {[%clk 0:02:50.7]} 11. Rfe1
{[%clk 0:02:41.1]} 11... c5 {[%clk 0:02:47.1]} 12. e4 {[%clk 0:02:39]} 12...
dxe4 {[%clk 0:02:35.5]} 13. Nxe4 {[%clk 0:01:47.3]} 13... Nxe4 {[%clk
0:02:35.4]} 14. Rxe4 {[%clk 0:01:47.3]} 14... Bb7 {[%clk 0:02:32.1]} 15. Re2
{[%clk 0:01:21.2]} 15... cxd4 {[%clk 0:02:31.6]} 16. Rd1 {[%clk 0:01:06.2]}
16... Bxf3 {[%clk 0:01:53.2]} 17. Bxf3 {[%clk 0:01:05.9]} 17... Bf6 {[%clk
0:01:53.7]} 18. Bd6 {[%clk 0:00:41.8]} 18... Re8 {[%clk 0:01:47.8]} 19. Bxa8
{[%clk 0:00:41.6]} 19... Qxa8 {[%clk 0:01:48.7]} 20. Qe4 {[%clk 0:00:41.3]}
20... Qc8 {[%clk 0:01:35.9]} 21. Rc1 {[%clk 0:00:26.5]} 21... Nc5 {[%clk
0:01:35]} 22. Bxc5 {[%clk 0:00:26]} 22... bxc5 {[%clk 0:01:34.4]} 23. f4 {[%clk
0:00:21.1]} 23... g6 {[%clk 0:01:33.1]} 24. Kg2 {[%clk 0:00:20.6]} 24... a5
{[%clk 0:01:32.4]} 25. b3 {[%clk 0:00:20.6]} 25... Qa6 {[%clk 0:01:25.7]} 26.
Rd1 {[%clk 0:00:12.6]} 26... a4 {[%clk 0:01:24.5]} 27. h4 {[%clk 0:00:11.5]}
27... h5 {[%clk 0:01:23.8]} 28. Qf3 {[%clk 0:00:11.2]} 28... Kg7 {[%clk
0:01:20.1]} 29. Rd3 {[%clk 0:00:07.5]} 29... Rb8 {[%clk 0:01:13.8]} 30. g4
{[%clk 0:00:05.6]} 30... hxg4 {[%clk 0:01:13.3]} 31. Qxg4 {[%clk 0:00:06.5]}
31... Rh8 {[%clk 0:01:13.1]} 32. Rh3 {[%clk 0:00:07.2]} 32... Rh5 {[%clk
0:01:12.2]} 33. Qf3 {[%clk 0:00:06.7]} 33... axb3 {[%clk 0:01:10.1]} 34. axb3
{[%clk 0:00:07.6]} 34... Qa1 {[%clk 0:01:09.7]} 35. Kh2 {[%clk 0:00:06.7]} 35...
Rxh4 {[%clk 0:01:03.2]} 36. Rxh4 {[%clk 0:00:06.6]} 36... Bxh4 {[%clk
0:01:04.1]} 37. Kg2 {[%clk 0:00:05.6]} 37... Qd1 {[%clk 0:01:00.9]} 38. Re4
{[%clk 0:00:04.7]} 38... Qc2+ {[%clk 0:00:54.5]} 39. Re2 {[%clk 0:00:04.7]}
39... Qb1 {[%clk 0:00:52.9]} 40. Re4 {[%clk 0:00:03.9]} 40... d3 {[%clk
0:00:45.1]} 41. Re3 {[%clk 0:00:03.4]} 41... d2 {[%clk 0:00:37.8]} 42. Rd3
{[%clk 0:00:03.9]} 42... Be1 {[%clk 0:00:36.6]} 43. Rd8 {[%clk 0:00:04.6]} 43...
Qf5 {[%clk 0:00:31.3]} 44. Qh3 {[%clk 0:00:05.2]} 44... Qe4+ {[%clk 0:00:24.3]}
45. Kg1 {[%clk 0:00:05.5]} 45... Kf6 {[%clk 0:00:15.3]} 46. Qg4 {[%clk
0:00:05.9]} 46... Qe3+ {[%clk 0:00:14]} 47. Kg2 {[%clk 0:00:05.7]} 47... Qe4+
{[%clk 0:00:14.1]} 48. Kg1 {[%clk 0:00:05.7]} 48... Qf5 {[%clk 0:00:14.4]} 49.
Qf3 {[%clk 0:00:05.2]} 49... g5 {[%clk 0:00:14.2]} 50. fxg5+ {[%clk 0:00:04.9]}
50... Kxg5 {[%clk 0:00:13.9]} 51. Rg8+ {[%clk 0:00:04.9]} 51... Kf6 {[%clk
0:00:14.3]} 52. Qe2 {[%clk 0:00:05.3]} 52... Qc2 {[%clk 0:00:10.5]} 53. Rd8
{[%clk 0:00:05]} 53... Qf5 {[%clk 0:00:09.9]} 54. Rd3 {[%clk 0:00:04.8]} 54...
Qg6+ {[%clk 0:00:09.4]} 55. Kf1 {[%clk 0:00:04.8]} 55... Ke7 {[%clk 0:00:09.9]}
56. Qf3 {[%clk 0:00:04.2]} 56... Qg5 {[%clk 0:00:08.4]} 57. Qb7+ {[%clk
0:00:04.6]} 57... Kf8 {[%clk 0:00:07.8]} 58. Qf3 {[%clk 0:00:04.4]} 58... Qg6
{[%clk 0:00:07.9]} 59. Rd7 {[%clk 0:00:04.4]} 59... Ke8 {[%clk 0:00:08.1]} 60.
Qc6 {[%clk 0:00:03.4]} 60... Kf8 {[%clk 0:00:08]} 61. Qf3 {[%clk 0:00:03.9]}
61... Kg7 {[%clk 0:00:08]} 62. Rd3 {[%clk 0:00:03.7]} 62... e5 {[%clk
0:00:07.8]} 63. Rd5 {[%clk 0:00:03.2]} 63... e4 {[%clk 0:00:07.6]} 64. Qf4
{[%clk 0:00:03.9]} 64... Qf6 {[%clk 0:00:07.1]} 65. Rg5+ {[%clk 0:00:03.7]}
65... Qxg5 {[%clk 0:00:02.4]} 66. Qxg5+ {[%clk 0:00:04]} 66... Kf8 {[%clk
0:00:03.3]} 67. Ke2 {[%clk 0:00:04.4]} 67... f6 {[%clk 0:00:02.8]} 68. Qxc5+
{[%clk 0:00:04.7]} 68... Kf7 {[%clk 0:00:03.1]} 69. Qd5+ {[%clk 0:00:05.4]}
69... Kg6 {[%clk 0:00:04]} 70. Qxe4+ {[%clk 0:00:06]} 70... f5 {[%clk
0:00:04.9]} 71. Qe6+ {[%clk 0:00:06.1]} 71... Kg5 {[%clk 0:00:05.8]} 72. c5
{[%clk 0:00:06.8]} 72... f4 {[%clk 0:00:05.7]} 73. Qd5+ {[%clk 0:00:07]} 73...
Kg4 {[%clk 0:00:06]} 74. Qf3+ {[%clk 0:00:07.6]} 74... Kf5 {[%clk 0:00:05.9]}
75. c6 {[%clk 0:00:08.5]} 75... Bh4 {[%clk 0:00:04]} 76. c7 {[%clk 0:00:08.7]}
1-0

[Event "Early-Titled-Tuesday-Blitz-February-20-2024"]
[Site "Chess.com"]
[Date "2024.02.20"]
[Round "5"]
[White "Boundless_Strike"]
[Black "AlexeiShirov"]
[Result "1-0"]
[WhiteElo "2641"]
[BlackElo "2833"]
[TimeControl "180+1"]
[EndTime "8:57:59 PST"]
[Termination "Boundless_Strike won by resignation"]

1. d4 {[%clk 0:01:57.4]} 1... d5 {[%clk 0:02:58.8]} 2. e4 {[%clk 0:01:57.2]}
2... dxe4 {[%clk 0:02:57.4]} 3. Nc3 {[%clk 0:01:57.5]} 3... Nf6 {[%clk
0:02:56.5]} 4. f3 {[%clk 0:01:57.7]} 4... Bf5 {[%clk 0:02:29]} 5. fxe4 {[%clk
0:01:55.8]} 5... Nxe4 {[%clk 0:02:28]} 6. Qf3 {[%clk 0:01:56.1]} 6... Nd6 {[%clk
0:02:26.6]} 7. Bf4 {[%clk 0:01:55.6]} 7... e6 {[%clk 0:02:22]} 8. O-O-O {[%clk
0:01:55]} 8... Nd7 {[%clk 0:02:16.3]} 9. g4 {[%clk 0:01:38.7]} 9... Bg6 {[%clk
0:02:15.6]} 10. Qe3 {[%clk 0:01:37.7]} 10... Be7 {[%clk 0:02:09.5]} 11. Nf3
{[%clk 0:01:25]} 11... h5 {[%clk 0:02:08.4]} 12. g5 {[%clk 0:01:20]} 12... Nf5
{[%clk 0:01:58.8]} 13. Qe2 {[%clk 0:01:14.1]} 13... h4 {[%clk 0:01:47.5]} 14. d5
{[%clk 0:01:05.3]} 14... e5 {[%clk 0:01:43.4]} 15. Bxe5 {[%clk 0:00:28.5]} 15...
Nxe5 {[%clk 0:01:42.6]} 16. Nxe5 {[%clk 0:00:28]} 16... Bxg5+ {[%clk 0:01:38.8]}
17. Kb1 {[%clk 0:00:28.1]} 17... O-O {[%clk 0:01:38.7]} 18. Nxg6 {[%clk
0:00:21.9]} 18... fxg6 {[%clk 0:01:38.2]} 19. d6 {[%clk 0:00:11.4]} 19... cxd6
{[%clk 0:01:32]} 20. Rg1 {[%clk 0:00:10.9]} 20... Re8 {[%clk 0:01:23.2]} 21.
Qc4+ {[%clk 0:00:06.5]} 21... Kh7 {[%clk 0:01:22.1]} 22. Nd5 {[%clk 0:00:06.7]}
22... Re5 {[%clk 0:01:12.2]} 23. Qg4 {[%clk 0:00:06.1]} 23... Nh6 {[%clk
0:01:08.7]} 24. Qh3 {[%clk 0:00:04.3]} 24... Qc8 {[%clk 0:01:00.1]} 25. Qd3
{[%clk 0:00:03.1]} 25... Qf5 {[%clk 0:00:56.5]} 26. Qb3 {[%clk 0:00:02.2]} 26...
Rae8 {[%clk 0:00:49.8]} 27. Bd3 {[%clk 0:00:02.8]} 27... Qf7 {[%clk 0:00:47]}
28. c4 {[%clk 0:00:03.5]} 28... Rxd5 {[%clk 0:00:26.3]} 29. cxd5 {[%clk
0:00:03.5]} 29... Re5 {[%clk 0:00:26.2]} 30. Bc2 {[%clk 0:00:03.7]} 30... Qe7
{[%clk 0:00:23.1]} 31. Qd3 {[%clk 0:00:04]} 31... Nf5 {[%clk 0:00:22.5]} 32.
Rdf1 {[%clk 0:00:03.8]} 32... Re3 {[%clk 0:00:19.3]} 33. Qc4 {[%clk 0:00:04.1]}
33... Qf6 {[%clk 0:00:17]} 34. Qg4 {[%clk 0:00:04.1]} 34... Bh6 {[%clk
0:00:16.5]} 35. Qc4 {[%clk 0:00:02.9]} 35... Re5 {[%clk 0:00:15.1]} 36. Qd3
{[%clk 0:00:02.8]} 36... Qf7 {[%clk 0:00:14.3]} 37. Bb3 {[%clk 0:00:02.1]} 37...
Qe7 {[%clk 0:00:14]} 38. a3 {[%clk 0:00:02.5]} 38... Re3 {[%clk 0:00:13.4]} 39.
Qc4 {[%clk 0:00:03.2]} 39... b5 {[%clk 0:00:12.9]} 40. Qb4 {[%clk 0:00:03.1]}
40... Re4 {[%clk 0:00:12]} 41. Qc3 {[%clk 0:00:03.2]} 41... Re3 {[%clk
0:00:11.6]} 42. Qb4 {[%clk 0:00:02.8]} 42... Re4 {[%clk 0:00:11.1]} 43. Qc3
{[%clk 0:00:03.2]} 43... a5 {[%clk 0:00:11.3]} 44. Bc2 {[%clk 0:00:03.5]} 44...
Re3 {[%clk 0:00:10.7]} 45. Qc8 {[%clk 0:00:03.6]} 45... Re5 {[%clk 0:00:09.8]}
46. Bxf5 {[%clk 0:00:03.7]} 46... gxf5 {[%clk 0:00:09.1]} 47. Rxf5 {[%clk
0:00:04.4]} 47... Re1+ {[%clk 0:00:08.5]} 48. Rxe1 {[%clk 0:00:03.9]} 48...
Qxe1+ {[%clk 0:00:09]} 49. Ka2 {[%clk 0:00:04.7]} 49... Qe4 {[%clk 0:00:09.9]}
50. Rf1 {[%clk 0:00:03.9]} 50... Qxd5+ {[%clk 0:00:08.8]} 51. Kb1 {[%clk
0:00:03.6]} 51... Qd3+ {[%clk 0:00:08.5]} 52. Qc2 {[%clk 0:00:04.5]} 52... Qxc2+
{[%clk 0:00:08.1]} 53. Kxc2 {[%clk 0:00:05.4]} 53... Bg5 {[%clk 0:00:08.3]} 54.
h3 {[%clk 0:00:05.3]} 54... Bf6 {[%clk 0:00:08.3]} 55. b3 {[%clk 0:00:05.7]}
55... Be5 {[%clk 0:00:08.7]} 56. Kd3 {[%clk 0:00:06.2]} 56... g5 {[%clk
0:00:08.9]} 57. Ke4 {[%clk 0:00:06.3]} 57... Kg6 {[%clk 0:00:09.3]} 58. Rf5
{[%clk 0:00:06.9]} 58... g4 {[%clk 0:00:09]} 59. hxg4 {[%clk 0:00:06.5]} 59...
h3 {[%clk 0:00:09.5]} 60. Rh5 {[%clk 0:00:07.1]} 60... h2 {[%clk 0:00:09.9]} 61.
Kd5 {[%clk 0:00:07]} 61... Bg3 {[%clk 0:00:09.6]} 62. Kc6 {[%clk 0:00:06.8]}
62... b4 {[%clk 0:00:09.4]} 63. a4 {[%clk 0:00:06.9]} 63... Bf4 {[%clk
0:00:08.3]} 64. Kb5 {[%clk 0:00:07.1]} 64... d5 {[%clk 0:00:08.3]} 65. Kc5
{[%clk 0:00:07.7]} 65... Bc7 {[%clk 0:00:07]} 66. Kxd5 {[%clk 0:00:08.1]} 66...
Bg3 {[%clk 0:00:06.2]} 67. Ke4 {[%clk 0:00:08.5]} 67... Bc7 {[%clk 0:00:05.4]}
68. Kf3 {[%clk 0:00:09.3]} 68... Bd6 {[%clk 0:00:04.6]} 69. Kg2 {[%clk
0:00:09.9]} 1-0

[Event "Early-Titled-Tuesday-Blitz-February-20-2024"]
[Site "Chess.com"]
[Date "2024.02.20"]
[Round "5"]
[White "Pikku_Myy73"]
[Black "BallottiLuca"]
[Result "1-0"]
[WhiteElo "2250"]
[BlackElo "2402"]
[TimeControl "180+1"]
[EndTime "8:58:15 PST"]
[Termination "Pikku_Myy73 won by checkmate"]

1. d4 {[%clk 0:02:58.7]} 1... Nf6 {[%clk 0:02:58]} 2. c4 {[%clk 0:02:58.3]} 2...
g6 {[%clk 0:02:56.3]} 3. Nc3 {[%clk 0:02:57.7]} 3... Bg7 {[%clk 0:02:55.8]} 4.
e4 {[%clk 0:02:57.6]} 4... O-O {[%clk 0:02:54.5]} 5. Nf3 {[%clk 0:02:57.2]} 5...
d6 {[%clk 0:02:53.8]} 6. h3 {[%clk 0:02:57.2]} 6... e5 {[%clk 0:02:47]} 7. d5
{[%clk 0:02:56]} 7... a5 {[%clk 0:02:46.3]} 8. Be2 {[%clk 0:02:54.6]} 8... Na6
{[%clk 0:02:43.7]} 9. Qc2 {[%clk 0:02:52.1]} 9... Nh5 {[%clk 0:02:41.2]} 10. g3
{[%clk 0:02:06]} 10... f5 {[%clk 0:02:39]} 11. Nh4 {[%clk 0:01:56]} 11... f4
{[%clk 0:02:36.8]} 12. Bxh5 {[%clk 0:01:51.1]} 12... gxh5 {[%clk 0:02:37.7]} 13.
Qe2 {[%clk 0:01:25.7]} 13... Qf6 {[%clk 0:02:27.8]} 14. Bd2 {[%clk 0:00:59.5]}
14... Nb4 {[%clk 0:02:02.7]} 15. O-O-O {[%clk 0:00:45]} 15... f3 {[%clk
0:01:58]} 16. Qe3 {[%clk 0:00:20]} 16... Kh8 {[%clk 0:01:45]} 17. a3 {[%clk
0:00:19.6]} 17... Na6 {[%clk 0:01:44.9]} 18. Qg5 {[%clk 0:00:17.6]} 18... Qxg5
{[%clk 0:01:35.8]} 19. Bxg5 {[%clk 0:00:18.5]} 19... Bd7 {[%clk 0:01:31.7]} 20.
Be3 {[%clk 0:00:18]} 20... Nc5 {[%clk 0:01:20.2]} 21. Bxc5 {[%clk 0:00:16.9]}
21... dxc5 {[%clk 0:01:21.1]} 22. Rd3 {[%clk 0:00:17.1]} 22... Rf7 {[%clk
0:01:07]} 23. Nd1 {[%clk 0:00:10.5]} 23... Raf8 {[%clk 0:01:06.6]} 24. Kc2
{[%clk 0:00:09.4]} 24... b5 {[%clk 0:01:03.8]} 25. Ne3 {[%clk 0:00:06.2]} 25...
Bh6 {[%clk 0:00:54.3]} 26. Nhf5 {[%clk 0:00:04.8]} 26... bxc4 {[%clk 0:00:50]}
27. Rc3 {[%clk 0:00:02.7]} 27... Ba4+ {[%clk 0:00:42.1]} 28. Kc1 {[%clk
0:00:03.1]} 28... Bg5 {[%clk 0:00:30.6]} 29. Rxc4 {[%clk 0:00:02.2]} 29... Bb5
{[%clk 0:00:21.7]} 30. Rxc5 {[%clk 0:00:02.5]} 30... Be2 {[%clk 0:00:22.4]} 31.
Kc2 {[%clk 0:00:02]} 31... Rb8 {[%clk 0:00:21.7]} 32. b3 {[%clk 0:00:01.8]}
32... Be7 {[%clk 0:00:16.2]} 33. Rc3 {[%clk 0:00:01.3]} 33... Bxa3 {[%clk
0:00:15.5]} 34. Ra1 {[%clk 0:00:02]} 34... Bb4 {[%clk 0:00:15.5]} 35. Rc6 {[%clk
0:00:02.6]} 35... Bb5 {[%clk 0:00:14.2]} 36. Nc4 {[%clk 0:00:02.4]} 36... Bxc6
{[%clk 0:00:13.4]} 37. dxc6 {[%clk 0:00:03.3]} 37... Re8 {[%clk 0:00:07]} 38.
Nfe3 {[%clk 0:00:03.3]} 38... Rf6 {[%clk 0:00:06.1]} 39. Nd5 {[%clk 0:00:03.1]}
39... Rxc6 {[%clk 0:00:06.8]} 40. Kd3 {[%clk 0:00:02.2]} 40... Rd6 {[%clk
0:00:05.1]} 41. Ke3 {[%clk 0:00:02.6]} 41... Rdd8 {[%clk 0:00:04.6]} 42. Kxf3
{[%clk 0:00:02.8]} 42... c6 {[%clk 0:00:04.6]} 43. Nde3 {[%clk 0:00:02.5]} 43...
Rf8+ {[%clk 0:00:05.1]} 44. Kg2 {[%clk 0:00:02.6]} 44... Rd3 {[%clk 0:00:04.8]}
45. Nxe5 {[%clk 0:00:01.9]} 45... Rxb3 {[%clk 0:00:04.7]} 46. Nf3 {[%clk
0:00:02.3]} 46... Rb2 {[%clk 0:00:04.2]} 47. Nd1 {[%clk 0:00:02]} 47... Rc2
{[%clk 0:00:03.4]} 48. Rb1 {[%clk 0:00:02.1]} 48... Bc5 {[%clk 0:00:03.4]} 49.
Rb2 {[%clk 0:00:02.3]} 49... Rxb2 {[%clk 0:00:03.5]} 50. Nxb2 {[%clk 0:00:03.2]}
50... a4 {[%clk 0:00:04.4]} 51. Nxa4 {[%clk 0:00:03.6]} 51... Bb4 {[%clk
0:00:04.2]} 52. Nb2 {[%clk 0:00:03.7]} 52... c5 {[%clk 0:00:04.7]} 53. Nc4
{[%clk 0:00:03.9]} 53... Ra8 {[%clk 0:00:04.6]} 54. e5 {[%clk 0:00:04]} 54...
Kg7 {[%clk 0:00:05]} 55. Nh4 {[%clk 0:00:02.5]} 55... Kf7 {[%clk 0:00:05.3]} 56.
Kf3 {[%clk 0:00:02.7]} 56... Ke6 {[%clk 0:00:05.8]} 57. Ke4 {[%clk 0:00:03.2]}
57... Rd8 {[%clk 0:00:04.9]} 58. Nf3 {[%clk 0:00:02.3]} 58... Bc3 {[%clk
0:00:03.2]} 59. Ng5+ {[%clk 0:00:02.7]} 59... Ke7 {[%clk 0:00:03.2]} 60. Nd6
{[%clk 0:00:03]} 60... Bxe5 {[%clk 0:00:01.9]} 61. Nf5+ {[%clk 0:00:02.9]} 61...
Kf8 {[%clk 0:00:01.7]} 62. Kxe5 {[%clk 0:00:02.7]} 62... c4 {[%clk 0:00:02.4]}
63. Ne6+ {[%clk 0:00:02.5]} 63... Kg8 {[%clk 0:00:02.9]} 64. Nxd8 {[%clk
0:00:02.8]} 64... c3 {[%clk 0:00:03.6]} 65. Ne3 {[%clk 0:00:03.1]} 65... Kg7
{[%clk 0:00:03.7]} 66. Kd4 {[%clk 0:00:03.6]} 66... Kf8 {[%clk 0:00:04.6]} 67.
Kxc3 {[%clk 0:00:04]} 67... Ke7 {[%clk 0:00:05.5]} 68. Nc6+ {[%clk 0:00:04.4]}
68... Ke6 {[%clk 0:00:06.4]} 69. Nd4+ {[%clk 0:00:05.3]} 69... Ke5 {[%clk
0:00:07.2]} 70. Ndf5 {[%clk 0:00:05.7]} 70... Ke4 {[%clk 0:00:08.1]} 71. Kd2
{[%clk 0:00:06]} 71... Kf3 {[%clk 0:00:09]} 72. Ke1 {[%clk 0:00:06.8]} 72... h6
{[%clk 0:00:08.5]} 73. Nh4+ {[%clk 0:00:07.7]} 73... Ke4 {[%clk 0:00:07.9]} 74.
Ke2 {[%clk 0:00:08.6]} 74... Kd4 {[%clk 0:00:08.1]} 75. f3 {[%clk 0:00:09.5]}
75... Ke5 {[%clk 0:00:08.5]} 76. Kd3 {[%clk 0:00:09.9]} 76... Kf6 {[%clk
0:00:09.4]} 77. f4 {[%clk 0:00:10.5]} 77... Kg7 {[%clk 0:00:09.7]} 78. Ke4
{[%clk 0:00:11.4]} 78... Kf6 {[%clk 0:00:10.6]} 79. Nd5+ {[%clk 0:00:11.6]}
79... Kg7 {[%clk 0:00:11.5]} 80. f5 {[%clk 0:00:12]} 80... Kf7 {[%clk
0:00:11.8]} 81. f6 {[%clk 0:00:12.9]} 81... Kf8 {[%clk 0:00:12.1]} 82. Kf5
{[%clk 0:00:13.3]} 82... Kf7 {[%clk 0:00:13]} 83. Nf4 {[%clk 0:00:13.2]} 83...
Kf8 {[%clk 0:00:13.9]} 84. Kg6 {[%clk 0:00:13.6]} 84... Kg8 {[%clk 0:00:14.2]}
85. Kxh6 {[%clk 0:00:13.8]} 85... Kf8 {[%clk 0:00:15.1]} 86. Kg6 {[%clk
0:00:14.1]} 86... Ke8 {[%clk 0:00:15.4]} 87. f7+ {[%clk 0:00:14.6]} 87... Kf8
{[%clk 0:00:16.3]} 88. Ne6+ {[%clk 0:00:12.7]} 88... Ke7 {[%clk 0:00:17.2]} 89.
f8=Q+ {[%clk 0:00:13.1]} 89... Kxe6 {[%clk 0:00:17.6]} 90. Qf7+ {[%clk
0:00:13.4]} 90... Ke5 {[%clk 0:00:17.7]} 91. Qf6+ {[%clk 0:00:13.3]} 91... Ke4
{[%clk 0:00:18.6]} 92. Qf5+ {[%clk 0:00:13.6]} 92... Kd4 {[%clk 0:00:18]} 93.
Qe6 {[%clk 0:00:13.4]} 93... Kc3 {[%clk 0:00:17.9]} 94. Qd5 {[%clk 0:00:13]}
94... Kb4 {[%clk 0:00:18.8]} 95. Qc6 {[%clk 0:00:13.1]} 95... Ka3 {[%clk
0:00:19.1]} 96. Qb5 {[%clk 0:00:13]} 96... Ka2 {[%clk 0:00:20]} 97. Kf5 {[%clk
0:00:13.6]} 97... Ka1 {[%clk 0:00:20.9]} 98. Ke4 {[%clk 0:00:14.3]} 98... Ka2
{[%clk 0:00:21.8]} 99. Kd3 {[%clk 0:00:15]} 99... Ka1 {[%clk 0:00:22.7]} 100.
Kc2 {[%clk 0:00:15.5]} 100... Ka2 {[%clk 0:00:23.6]} 101. Qa4# {[%clk 0:00:16]}
1-0